Cogmind - Beta 10.2 @@@ ROGUE MODE // 2021.10.25 @ 21:53:19 Player: SHOCK Result: Self-destructed Performance ------------- Evolutions (2) 1000 Regions Visited (5) 1000 Robots Destroyed (22) 110 Value Destroyed (535) 535 Prototype IDs (25) 500 Alien Tech Used (0) 0 Bonus (300) 300 TOTAL SCORE: 3445 Bonus ------- Aligned with FarCom 300 Cogmind --------- Core Integrity 418/550 Matter 300/300 Energy 64/100 System Corruption 2% Temperature Cool (0) Movement Walking (90) Location -8/Materials Parts ------- > --- POWER (2) -------- (None) > --- PROPULSION (3) --- Potential Leg Potential Leg Improved VTOL Module > --- UTILITY (4) ------ Lightpack 2.0 > --- WEAPON (2) ------- Ripper > --- INVENTORY (24) --- Flight Unit Flight Unit Flight Unit Cesium-ion Thruster Faulty Experimental Sensor Array Signal Interpreter Melee Analysis Suite Beam Rifle Light EM Pulse Cannon EM Pulse Cannon YOLO Cannon Assault Rifle Peak State ------------ > --- POWER ------------ Improved Ion Engine > --- PROPULSION ------- Potential Leg Potential Leg Improved VTOL Module > --- UTILITY ---------- Lightpack 2.0 Experimental Sensor Array Maneuvering Thrusters > --- WEAPON ----------- Ripper > --- INVENTORY -------- Flight Unit Flight Unit Flight Unit Signal Interpreter Beam Rifle Light EM Pulse Cannon EM Pulse Cannon YOLO Cannon Assault Rifle [Rating: 62] Favorites ----------- Power Improved Ion Engine Engine Improved Ion Engine Propulsion Potential Leg Leg Potential Leg Wheel Wheel Flight Unit Flight Unit Utility Lightpack 2.0 Device Shield Generator Storage Lightpack 2.0 Weapon Ripper Energy Cannon Beam Cannon Ballistic Gun Light Assault Rifle Launcher Mini Grenade Launcher Special Weapon Mining Laser Slashing Weapon Ripper Build | -11 -10 -10 -10 -9 -8 ------- Run | Scr Mat Min Exi Min Mat Slots Evolved 4 | . . . . . 4 Power 1 | . . . . . 1 Propulsion 1 | . . . . . 1 Utility 2 | . . . . . 2 Weapon . | . . . . . . Parts Attached 30 | 5 6 10 4 2 3 Power 4 | 1 1 1 . 1 . Engine 4 | 1 1 1 . 1 . Core . | . . . . . . Reactor . | . . . . . . Propulsion 10 | 2 . 4 3 . 1 Treads . | . . . . . . Leg 2 | . . . 2 . . Wheel 2 | 2 . . . . . Hover . | . . . . . . Flight 6 | . . 4 1 . 1 Utility 7 | . 3 1 1 . 2 Device 6 | . 3 1 . . 2 Storage 1 | . . . 1 . . Processor . | . . . . . . Hackware . | . . . . . . Protection . | . . . . . . Artifact . | . . . . . . Weapon 9 | 2 2 4 . 1 . Energy Gun . | . . . . . . Energy Cannon 1 | . . 1 . . . Ballistic Gun 4 | 2 1 1 . . . Ballistic Cannon . | . . . . . . Launcher 1 | . 1 . . . . Special Weapon 1 | . . 1 . . . Impact Weapon . | . . . . . . Slashing Weapon 2 | . . 1 . 1 . Piercing Weapon . | . . . . . . Special Melee Weapon . | . . . . . . Unidentified Prototypes 2 | . . . . . 2 Parts Lost 12 | . 1 9 . . 2 Power 3 | . . 2 . . 1 Propulsion 3 | . . 3 . . . Utility 3 | . . 2 . . 1 Weapon 3 | . 1 2 . . . Highest Loss Streak 6 | . 1 6 . . 2 Average Slot Usage (%) 67 | . 93 67 53 63 63 Engine 7 | . 14 11 . 6 8 Leg 14 | . . . 20 28 18 Wheel 7 | . 28 7 . . . Flight 4 | . . 17 7 . 3 Device 10 | . 26 16 . . 14 Storage 7 | . . . 10 14 9 Ballistic Gun 2 | . 11 1 . . . Launcher 2 | . 10 3 . . . Slashing Weapon 9 | . . 7 14 14 9 Naked Turns . | . . . . . . Heaviest Build 17 | 6 14 11 8 15 17 Greatest Support 60 | 20 20 20 60 60 60 Greatest Overweight (x) 2 | . . . 2 . . Average Overweight (x) . | . . . . . . Largest Inventory Capacity 24 | 4 4 4 24 24 24 Average Capacity 15 | 4 4 4 18 24 24 Most Carried 13 | 1 4 4 7 10 13 Average Carried 6 | . 3 3 5 8 10 Final Capacity 24 | 4 4 4 24 24 24 Final Carried 13 | . 4 3 7 10 13 Class Distribution -------------------- 43% | Hauler-Mutant 42% | Mutant 13% | Hauler-Assassin Dominant Class ---------------- Mutant | -10/Materials Mutant | -10/Mines Hauler-Mutant | -10/Exiles Hauler-Mutant | -9/Mines Hauler-Assassin | -8/Materials Resources | -11 -10 -10 -10 -9 -8 ----------- Run | Scr Mat Min Exi Min Mat Matter Collected 657 | 266 150 87 . 124 30 Remotely . | . . . . . . Salvage Created 629 | 38 151 47 . 103 290 Parts 40 | 2 9 6 . 3 20 Haulers Intercepted . | . . . . . . Recyclers Shooed . | . . . . . . Parts Field Recycled . | . . . . . . Retrieved Matter . | . . . . . . Parts Self-Destructed . | . . . . . . Prevented . | . . . . . . Kills | -11 -10 -10 -10 -9 -8 ------- Run | Scr Mat Min Exi Min Mat Combat Hostiles Destroyed 18 | 1 6 3 . . 8 Melee 9 | . . 1 . . 8 Guns 3 | 1 2 . . . . Cannons 2 | . . 2 . . . AOE 4 | . 4 . . . . Classes Destroyed 7 | 1 2 1 . 2 1 Worker 1 | . 1 . . . . Tunneler 1 | . . . . 1 . Recycler 1 | . . . . 1 . Watcher 1 | . 1 . . . . Swarmer 7 | . . 3 . . 4 Grunt 9 | 1 6 . . . 2 Sentry 2 | . . . . . 2 Best Kill Streak 6 | 1 6 3 . 1 4 Combat Bots Only 4 | 1 4 3 . . 4 Max Kills in Single Turn 2 | 1 2 1 . 1 1 Gunslinging . | . . . . . . Exploded 2 | . 2 . . . . Melee 1 | . . 1 . . 1 Uniques/NPCs Destroyed . | . . . . . . Combat | -11 -10 -10 -10 -9 -8 -------- Run | Scr Mat Min Exi Min Mat Damage Taken 1109 | 45 315 342 . . 407 Core 317 | 12 62 111 . . 132 Absorbed by Shields 135 | . 117 18 . . . Core Remaining (%) 60 | 95 . . . 26 . Volleys Fired 37 | 4 25 8 . . . Largest 2 | 2 2 1 . . . Hottest 100 | 40 50 100 . . . Shots Fired 42 | 8 26 8 . . . Gun 24 | 8 16 . . . . Cannon 7 | . . 7 . . . Launcher 10 | . 10 . . . . Special 1 | . . 1 . . . Kinetic 24 | 8 16 . . . . Thermal 8 | . . 8 . . . Explosive 10 | . 10 . . . . Electromagnetic . | . . . . . . Robot Hit Streak 12 | 6 12 4 . . . Robot Miss Streak 1 | 1 1 1 . . . Penetration Max . | . . . . . . Secondary Targets . | . . . . . . Shots Hit Robots 46 | 6 18 5 . 3 14 Core Hits 34 | 2 18 4 . 2 8 Critical Hits 4 | . . 1 . . 3 Critical Kills 1 | . . . . . 1 Critical Parts Destroyed 3 | . . 1 . . 2 Melee Attacks 25 | . . . . 4 21 Impact . | . . . . . . Slashing 25 | . . . . 4 21 Piercing . | . . . . . . Sneak Attacks 2 | . . . . 2 . Combat Hostiles . | . . . . . . Follow-up Attacks . | . . . . . . Damage Inflicted 1767 | 51 868 116 . 219 513 Guns 148 | 51 97 . . . . Cannons 105 | . . 105 . . . Explosions 771 | . 771 . . . . Melee 732 | . . . . 219 513 Ramming 11 | . . 11 . . . Kinetic 148 | 51 97 . . . . Thermal 105 | . . 105 . . . Explosive 771 | . 771 . . . . Electromagnetic . | . . . . . . Impact . | . . . . . . Slashing 732 | . . . . 219 513 Piercing . | . . . . . . Highest Corruption 3 | . 3 3 3 3 2 Average Corruption 2 | . 2 3 3 3 2 Corruption Purged . | . . . . . . Effects 41 | . 8 3 17 9 4 Message Errors 15 | . 2 2 5 4 2 Matter Fused 9 | . 3 . 4 2 . Heat Flow Errors 2 | . . . 1 1 . Energy Discharges 8 | . . . 4 2 2 Data Loss (minor) 6 | . 2 1 3 . . Targeting Errors 1 | . 1 . . . . Overload Shots . | . . . . . . Overflow Damage 96 | . 48 . . 48 . Projectiles . | . . . . . . Explosions 48 | . 48 . . . . Melee 48 | . . . . 48 . Knockbacks . | . . . . . . Impact . | . . . . . . Kinetic . | . . . . . . Secondary . | . . . . . . Self-Inflicted Damage 109 | . 104 5 . . . Shots 4 | . 4 . . . . Rammed 4 | . . 4 . . . Targets Rammed 4 | . . 4 . . . Kicked . | . . . . . . Crushed . | . . . . . . Highest Temperature 131 | 6 . 50 119 131 . Average Temperature 38 | 6 . 22 61 74 . Received Heat Transfer 272 | 24 120 20 . . 108 Siege Activations . | . . . . . . Robots Corrupted . | . . . . . . Combat Hostiles . | . . . . . . Parts Fried . | . . . . . . Impact Corruptions . | . . . . . . Robots Melted . | . . . . . . Combat Hostiles . | . . . . . . Parts Melted . | . . . . . . Heat Transferred 222 | . . 222 . . . Parts Sabotaged . | . . . . . . Parts Stolen . | . . . . . . Parts Stripped . | . . . . . . Power Chain Reactions . | . . . . . . Missiles Intercepted . | . . . . . . Alert | -11 -10 -10 -10 -9 -8 ------- Run | Scr Mat Min Exi Min Mat Peak Influence 210 | 20 210 102 . 10 195 Initial 36 | . 13 36 . . . Average 56 | 2 77 61 . 2 101 Maximum Alert Level 1 | . 1 . . . 1 Low Security (%) 92 | 100 78 100 . 100 99 Level 1 7 | . 21 . . . . Level 2 . | . . . . . . Level 3 . | . . . . . . Level 4 . | . . . . . . Level 5 . | . . . . . . High Security . | . . . . . . Max Security . | . . . . . . Squads Dispatched 3 | . 2 . . . 1 Investigation 2 | . 1 . . . 1 Extermination . | . . . . . . Reinforcement 1 | . 1 . . . . Assault . | . . . . . . Garrison . | . . . . . . Intercept . | . . . . . . Construction Impeded . | . . . . . . Haulers Reinforced . | . . . . . . Stealth | -11 -10 -10 -10 -9 -8 --------- Run | Scr Mat Min Exi Min Mat Distress Signals 3 | . 2 . . . 1 Communications Jammed . | . . . . . . Distress Signals . | . . . . . . Times Spotted 48 | 1 12 18 . . 17 Peak Tracking Total 8 | 1 5 8 . . 8 Tactical Retreats 6 | . 1 3 . . 2 Traps | -11 -10 -10 -10 -9 -8 ------- Run | Scr Mat Min Exi Min Mat Traps Triggered 4 | . 3 . . . 1 Indirectly . | . . . . . . Trap Hack Attempts . | . . . . . . Triggered . | . . . . . . Disarmed . | . . . . . . Reprogrammed . | . . . . . . Reused . | . . . . . . Traps Extracted . | . . . . . . Installed . | . . . . . . Triggered . | . . . . . . Machines | -11 -10 -10 -10 -9 -8 ---------- Run | Scr Mat Min Exi Min Mat Machines Disabled . | . . . . . . Max in Single Turn . | . . . . . . Machines Sabotaged . | . . . . . . Garrisons Compromised . | . . . . . . Overloaded Fab Kills . | . . . . . . Fab Network Shutdowns . | . . . . . . Hacking | -11 -10 -10 -10 -9 -8 --------- Run | Scr Mat Min Exi Min Mat Machines Accessed 12 | . 6 1 5 . . Terminals 7 | . 6 1 . . . Fabricators . | . . . . . . Repair Stations . | . . . . . . Recycling Units . | . . . . . . Scanalyzers . | . . . . . . Garrison Access . | . . . . . . Total Hacks 98 | . 39 9 50 . . Successful 83 | . 27 6 50 . . Failed 15 | . 12 3 . . . Catastrophic 4 | . 2 2 . . . Database Lockouts . | . . . . . . Manual 37 | . 28 8 1 . . Terminals 48 | . 39 9 . . . Fabricators . | . . . . . . Repair Stations . | . . . . . . Recycling Units . | . . . . . . Scanalyzers . | . . . . . . Garrison Access . | . . . . . . Terminal Hacks 71 | . 17 4 50 . . Record 53 | . 4 . 49 . . Level Access Points 1 | . . 1 . . . Branch Access Points 2 | . 1 1 . . . Emergency Access Points 1 | . . 1 . . . Terminal Index 1 | . 1 . . . . Alert Level 2 | . 2 . . . . Unreport Threat 1 | . 1 . . . . Locate Traps 1 | . 1 . . . . Maintenance Status 1 | . 1 . . . . Patrol Status 1 | . 1 . . . . Transport Status 1 | . 1 . . . . Assault Status 1 | . 1 . . . . Hauler Manifests 2 | . 1 1 . . . Registered Components 1 | . 1 . . . . Zone Layout 1 | . 1 . . . . EX-Prototype ID Bank 1 | . . . 1 . . Fabricator Hacks . | . . . . . . Repair Station Hacks . | . . . . . . Recycling Unit Hacks . | . . . . . . Scanalyzer . | . . . . . . Garrison Access Hacks . | . . . . . . Unauthorized Hacks 12 | . 10 2 . . . Terminals 12 | . 10 2 . . . Track 1 | . 1 . . . . Assimilate 2 | . 2 . . . . Botnet 7 | . 6 1 . . . Operators 2 | . 1 1 . . . Fabricators . | . . . . . . Repair Stations . | . . . . . . Recycling Units . | . . . . . . Scanalyzers . | . . . . . . Garrison Access . | . . . . . . Data Cores Recovered . | . . . . . . Used . | . . . . . . Hacking Detections 6 | . 5 1 . . . Full Trace Events . | . . . . . . Feedback Events . | . . . . . . Feedback Blocked . | . . . . . . Robot Schematics Acquired . | . . . . . . Robots Built . | . . . . . . Matter . | . . . . . . Time . | . . . . . . Total Robot Build Rating . | . . . . . . Part Schematics Acquired . | . . . . . . Parts Built . | . . . . . . Matter . | . . . . . . Time . | . . . . . . Total Part Build Rating . | . . . . . . Parts Repaired . | . . . . . . Time . | . . . . . . Parts Recycled . | . . . . . . Recycled Matter . | . . . . . . Retrieved Matter . | . . . . . . Retrieved Components . | . . . . . . Parts Scanalyzed . | . . . . . . Part Schematics Acquired . | . . . . . . Parts Damaged . | . . . . . . Bothacking | -11 -10 -10 -10 -9 -8 ------------ Run | Scr Mat Min Exi Min Mat Used RIF Installer . | . . . . . . Robots Hacked . | . . . . . . Non-combat . | . . . . . . Combat . | . . . . . . Robot Hacks Applied . | . . . . . . Relay Couplers Released . | . . . . . . Robots Rewired . | . . . . . . Allies Hacked . | . . . . . . Hacks Repelled . | . . . . . . Allies | -11 -10 -10 -10 -9 -8 -------- Run | Scr Mat Min Exi Min Mat Total Allies 1 | . 1 . . . . Largest Group 1 | . 1 1 . . . Highest-Rated Group 10 | . 10 10 . . . Highest-Rated Ally 10 | . 10 10 . . . Total Orders 4 | . 4 . . . . STAY 2 | . 2 . . . . FOLLOW 2 | . 2 . . . . Ally Attacks . | . . . . . . Total Damage . | . . . . . . Kills . | . . . . . . Allies Corrupted . | . . . . . . Allies Melted . | . . . . . . Intel | -11 -10 -10 -10 -9 -8 ------- Run | Scr Mat Min Exi Min Mat Robot Analysis Total . | . . . . . . Derelict Logs Recovered 3 | . . 2 . 1 . Drone Launches . | . . . . . . Drone Recoveries . | . . . . . . Exploration | -11 -10 -10 -10 -9 -8 ------------- Run | Scr Mat Min Exi Min Mat Turns Passed 2754 | 66 639 258 810 554 427 Spaces Moved 3341 | 66 639 472 1181 597 386 Core 20 | 18 . 1 1 . . Treads . | . . . . . . Legs 1644 | . . . 661 597 386 Wheels 755 | 48 639 68 . . . Hover . | . . . . . . Flight 922 | . . 403 519 . . Fastest Speed 37 | 50 80 37 37 90 90 Average Speed 73 | 71 80 43 67 90 90 Slowest Speed 150 | 80 80 80 150 90 90 Overloaded Moves . | . . . . . . Propulsion Burnouts . | . . . . . . Robots Hopped 10 | . . 10 . . . Cave-ins Triggered . | . . . . . . Exploration Rate (%) 58 | 8 66 63 93 93 27 Regions Visited 5 Branch Regions 3 Pre-discovered Areas 3 | . . 1 1 1 . Known Exits Taken 1 | . 1 . . . . Unknown Exits Taken 4 | 1 . 1 1 1 . Scrap Searched 4 | . . 2 . 2 . Spaces Dug 38 | . 38 . . . . Terrain Destroyed 81 | . 80 1 . . . Melee . | . . . . . . Projectile 1 | . . 1 . . . AOE 80 | . 80 . . . . Terrain Rammed . | . . . . . . Walls Destroyed . | . . . . . . Machines Disabled . | . . . . . . Actions | -11 -10 -10 -10 -9 -8 --------- Run | Scr Mat Min Exi Min Mat Total 3554 | 75 743 506 1189 607 434 Wait 89 | . 63 8 . . 18 Move 3317 | 65 638 452 1180 596 386 Hop 9 | . . 9 . . . Pick Up 19 | 1 5 4 1 3 5 Fast Attach 24 | 4 5 9 4 2 . Attach 4 | 1 . . . . 3 Detach 8 | . 1 2 3 1 1 Swap 2 | . 1 1 . . . Drop 16 | . 5 9 1 1 . Fire 37 | 4 25 8 . . . Melee 25 | . . . . 4 21 Ram 4 | . . 4 . . . Kick . | . . . . . . Crush . | . . . . . . Escape Stasis . | . . . . . . Rewire . | . . . . . . Trap . | . . . . . . Miscellaneous . | . . . . . . Route ------- -11/Scrapyard -10/Materials (discovered 4 exits: *Mat x2 / *Min x2) -10/Mines (discovered 3 exits: *Mat x2 / *Exi) -10/Exiles (discovered 2 exits: [*Min x2]) -9/Mines (discovered 2 exits: [*Mat x2]) -8/Materials History --------- Turn | Location | Event 2 | -11/Scrapyard | Met Revision 17 46 | -11/Scrapyard | Discovered new exit (range 8) 67 | -11/Scrapyard | Entered Materials 258 | -10/Materials | Identified exit to Mines 261 | -10/Materials | Discovered new exit (range 10) 309 | -10/Materials | Build established: Mutant 459 | -10/Materials | Discovered new exit (range 6) 706 | -10/Materials | Entered Mines 706 | -10/Mines | Accompanied by 1 ally 743 | -10/Mines | Learned Materials emergency access door positions 765 | -10/Mines | Discovered new exit (range 8) 815 | -10/Mines | Identified exit to Materials 822 | -10/Mines | Lost 6 parts (1p2n1u2w) 824 | -10/Mines | A weapon hastily lodged in a ceiling crevice suddenly fell to the ground 863 | -10/Mines | Assembled infested the area 877 | -10/Mines | Found a hidden stash of uninstalled traps 888 | -10/Mines | Core integrity fell below 50% 908 | -10/Mines | Learned location of Storage (-7) 963 | -10/Mines | Deemed a non-threat by the Exiles lab entrance 963 | -10/Mines | Discovered new exit (range 5) 964 | -10/Mines | Entered Exiles 969 | -10/Exiles | Discovered new exit (range 15) 974 | -10/Exiles | Met 8R-AWN 979 | -10/Exiles | Met EX-HEX 984 | -10/Exiles | Lost 3 parts (1p1n1u) 1011 | -10/Exiles | Met EX-DEC 1023 | -10/Exiles | Visited The Gauntlet 1116 | -10/Exiles | Met EX-BIN 1128 | -10/Exiles | Aligned with FarCom system 1129 | -10/Exiles | Given EX-Vault access code 1154 | -10/Exiles | Opened EX-Vault 1172 | -10/Exiles | Found Lightpack 2.0 1176 | -10/Exiles | Found Potential Leg 1179 | -10/Exiles | Found Potential Leg 1202 | -10/Exiles | Warned to stay clear of 0b10 Research branches 1223 | -10/Exiles | Found YOLO Cannon 1410 | -10/Exiles | Learned location of Zion (-7) 1485 | -10/Exiles | Build established: Hauler-Mutant 1538 | -10/Exiles | Discovered new exit (range 14) 1774 | -10/Exiles | Stole three prototypes: Lightpack 2.0, Potential Leg, YOLO Cannon 1774 | -10/Exiles | Entered Mines 1999 | -9/Mines | Discovered new exit (range 3) 2096 | -9/Mines | Discovered new exit (range 7) 2226 | -9/Mines | Found a damaged Exp. Sensor Array with a note attached 2228 | -9/Mines | Found Prototype Device 2328 | -9/Mines | Entered Materials 2328 | -8/Materials | Evolved 4 slots: Power x1, Propulsion x1, Utility x2 2328 | -8/Materials | Identified Exp. Sensor Array 2624 | -8/Materials | Build established: Hauler-Assassin 2755 | -8/Materials | Self-destructed Last Messages --------------- 02582_ K-01 Serf cleans the Hadron Collector. 02595_ K-01 Serf collects debris. 02620_ R-06 Scavenger collects Flight Unit. 02628_ R-06 Scavenger collects Lgt. Ion Engine. 02647_ K-01 Serf collects debris. 02690_ Acquired Cesium-ion Thruster. 02696_ Acquired Melee Analysis Suite. 02727_ W-25 Informer sends out distress signal. 02729_ Triggered Alarm Trap. 02729_ An alarm sounds. 02729_ ALERT: Alarm triggered, dispatching investigation squad. 02730_ U-05 Engineer lays Concrete. 02733_ Y-45 Defender suffers critical hit. 02733_ Y-45 Defender destroyed. 02734_ U-05 Engineer lays Concrete. 02745_ G-47 Trooper destroyed. 02748_ Imp. Ion Engine destroyed. 02752_ G-47 Trooper destroyed. 02752_ Maneuvering Thrusters destroyed. 02754_ System corrupted: Energy discharge (-39). Map ----- +----------------------------------------------------+ | ???????????????? ######??????????????????????????? | | ???????????????? ???????????????????????????? | | ???????????????"" ???????????????????????????? | | ??????????????""" !!!????????????????????????????? | | ??????????????""" !!!????????????????????????????? | | #?????????????? !!?????????????????????????????? | | #?????????????? ?????????????????????????????? | | #???????????????" ??????????????????????????????? | | #???????????????" ?????#####????????????????????? | | #?###############+####### #????????????????????? | | #?# # "" # + #????????????????????? | | ### # ""S # ###### #????????????????????? | | + / "" # #????# #????????????????????? | | ### # + #????# #????????????????????? | | ### # # #????# #????????????????????? | | ### ## """" # #????# ########?????????????? | | #?# ## """" # #######+### ############## | | #?# ## """" # [! w g | | #?# ## # !%= g Y | | #?# ## # =! | | #?# ####################### #############?? | | #### ###?#################### ##?????????????? | | ! ] [%= #??????????????? | | ug #??????????????? | | u = [[! #??????????????? | | ###########????### @* [! #??????????????? | | ?????????????????# """ [! #??????????????? | | ?????????????????# """ #??????????????? | | ?????????????????+ """ #?????????????? | | ?????????????????# """ ???????????? | | ?????????????????# ?????????? | | ?????????????????# ? ?????????? | | ?????????????????? ??? ###+#?????????? | | ??????????????????????######### ##?????????????? | | ??????????????????????????????# #??????????????? | | ??????????????????????????????# #??????????????? | | ??????????????????????????????? #??????????????? | | ??????????????????????????????? #??????????????? | | ?????????????????????????????????????????????????? | | ?????????????????????????????????????????????????? | | ????????????????????????????????????+????????????? | | ?????????????????????????????????????????????????? | | ?????????????????????????????????????????????????? | | ?????????????????????????????????????????????????? | | ????????????????????????????????????+????????????? | | ?????????????????????????????????????????????????? | | ?????????????????????????????????????????????????? | | ?????????????????????????????????????????????????? | | ?????????????????????????????????????????????????? | | ?????????????????????????????????????????????????? | +----------------------------------------------------+ Best States ------------- Heat Dissipation 47 Energy Generation 12 Energy Capacity 265 Matter Stores 300 Matter Capacity 300 Sight Range 16 Robot Scan Range 10 Terrain Scan Density 10 Evasion (%) 62 Item Schematics ----------------- None Robot Schematics ------------------ None Fabricated ------------ Nothing Alien Tech Used ----------------- None Achievements -------------- None Challenges ------------ None Game ------ Seed CannonDimensionalMembrane Manual? 0 Play Time 00:43:06 Cumulative 1.4 hours Start 2021.10.25 @ 20:56:39 End 2021.10.25 @ 21:53:19 Sessions 3 Manual Loads 0 Difficulty Rogue Special Mode None Game No. 1 Rogue 1 Adventurer 0 Explorer 0 Win Type - Total 0 Types 0/0/0/0/0/0/0/0/0 Lore% 10 Gallery% 2 Achievement% 61 Wizard Run 0 Options --------- ASCII 0 Keyboard 0 Movement Arrows Keybinds 0 Fullscreen 2 Font 18/X11 Map View 76x50 Tactical HUD 1 Map Filters NONE Filters NONE Steam 1 RUN: b1d11651-f359-4089-9eb9-a6cc6e532aa6